fUST/lending_fUST_20260427
["ID","MTS","AMOUNT","RATE_DAILY","PERIOD"]
[421228556,1777271447862,-500.0,0.00019178,2]
[421228557,1777271447874,-500.0,0.00019178,2]
[421228558,1777271447888,-500.0,0.00019178,2]
[421228559,1777271447900,-1000.0,0.00019178,2]
[421228560,1777271447911,-609.16,0.00019178,2]
[421228561,1777271447921,-500.0,0.00019178,2]
[421228562,1777271447931,-500.0,0.00019178,2]
[421228563,1777271447942,-500.0,0.00019178,2]
[421228564,1777271447956,-4525.54,0.00019178,2]
[421228565,1777271447969,-1941.75,0.00019178,2]
[421228566,1777271447979,-1719.05,0.00019178,2]
[421228567,1777271447990,-782.85,0.00019178,2]
[421228568,1777271448002,-500.0,0.00019178,2]
[421228569,1777271448015,-524.02,0.00019178,2]
[421228570,1777271448027,-500.0,0.00019178,2]
[421228571,1777271448040,-500.0,0.00019178,2]
[421228572,1777271448051,-500.0,0.00019178,2]
[421228573,1777271448064,-500.0,0.00019178,2]
[421228574,1777271448076,-713.57,0.00019178,2]
[421228575,1777271448086,-701.51,0.00019178,2]
[421228576,1777271448099,-500.0,0.00019178,2]
[421228577,1777271448109,-500.0,0.00019178,2]
[421228578,1777271448120,-838.23,0.00019178,2]
[421228579,1777271448131,-500.0,0.00019178,2]
[421228580,1777271448141,-582.24,0.00019178,2]
[421228581,1777271448152,-500.0,0.00019178,2]
[421228582,1777271448163,-1039.27,0.00019178,2]
[421228583,1777271448175,-500.0,0.00019178,2]
[421228584,1777271448185,-500.0,0.00019178,2]
[421228585,1777271448197,-500.0,0.00019178,2]
[421228586,1777271448208,-1596.24,0.00019178,2]
[421228587,1777271448219,-500.0,0.00019178,2]
[421228588,1777271448230,-500.0,0.00019178,2]
[421228589,1777271448241,-1518.77,0.00019178,2]
[421228590,1777271448252,-723.67,0.00019178,2]
[421228592,1777271448263,-5619.89,0.00019178,2]
[421228594,1777271448275,-500.0,0.00019178,2]
[421228595,1777271448286,-500.0,0.00019178,2]
[421228596,1777271448297,-500.0,0.00019178,2]
[421228597,1777271448308,-806.62,0.00019178,2]
[421228598,1777271448319,-500.0,0.00019178,2]
[421228599,1777271448331,-950.1,0.00019178,2]
[421228600,1777271448342,-2951.96,0.00019178,2]
[421228601,1777271448354,-500.0,0.00019178,2]
[421228602,1777271448369,-2470.89,0.00019178,2]
[421228603,1777271448381,-1084.27,0.00019178,2]
[421228605,1777271448392,-951.38,0.00019178,2]
[421228606,1777271448403,-500.0,0.00019178,2]
[421228608,1777271448415,-1410.56,0.00019178,2]
[421228609,1777271448426,-332.79491204,0.00019178,2]
[421228610,1777271448437,-300.0,0.00019178,2]
[421228611,1777271448448,-1247.62,0.00019178,2]
[421228612,1777271448459,-2811.67,0.00019178,2]
[421228613,1777271448470,-500.0,0.00019178,2]
[421228614,1777271448481,-500.0,0.00019178,2]
[421228615,1777271448491,-500.0,0.00019178,2]
[421228616,1777271448503,-881.85,0.00019178,2]
[421228617,1777271448514,-3296.01,0.00019178,2]
[421228618,1777271448524,-2027.37,0.00019178,2]
[421228619,1777271448535,-500.0,0.00019178,2]
[421228620,1777271448547,-533.79,0.00019178,2]
[421228621,1777271448558,-500.0,0.00019178,2]
[421228622,1777271448569,-764.13,0.00019178,2]
[421228623,1777271448580,-500.0,0.00019178,2]
[421228624,1777271448591,-500.0,0.00019178,2]
[421228625,1777271448603,-1212.35,0.00019178,2]
[421228626,1777271448615,-1222.06,0.00019178,2]
[421228627,1777271448626,-500.0,0.00019178,2]
[421228629,1777271448637,-500.0,0.00019178,2]
[421228630,1777271448648,-258.55752582,0.00019178,2]
[421228631,1777271448659,-500.0,0.00019178,2]
[421228632,1777271448670,-1999.35,0.00019178,2]
[421228633,1777271448681,-1396.76,0.00019178,2]
[421228634,1777271448692,-6762.16,0.00019178,2]
[421228635,1777271448703,-500.0,0.00019178,2]
[421228636,1777271448714,-500.0,0.00019178,2]
[421228637,1777271448725,-500.0,0.00019178,2]
[421228638,1777271448736,-500.0,0.00019178,2]
[421228639,1777271448747,-3455.35,0.00019178,2]
[421228640,1777271448759,-3201.44,0.00019178,2]
[421228641,1777271448771,-500.0,0.00019178,2]
[421228642,1777271448783,-500.0,0.00019178,2]
[421228643,1777271448794,-1158.52,0.00019178,2]
[421228644,1777271448805,-4289.07,0.00019178,2]
[421228645,1777271448817,-2745.09,0.00019178,2]
[421228646,1777271448828,-287.0478291,0.00019178,2]
[421228647,1777271448838,-500.0,0.00019178,2]
[421228648,1777271448849,-1416.56,0.00019178,2]
[421228649,1777271448860,-500.0,0.00019178,2]
[421228650,1777271448871,-500.0,0.00019178,2]
[421228651,1777271448882,-500.0,0.00019178,2]
[421228652,1777271448893,-500.0,0.00019178,2]
[421228653,1777271448904,-3239.56,0.00019178,2]
[421228654,1777271448915,-1227.02,0.00019178,2]
[421228655,1777271448926,-500.0,0.00019178,2]
[421228656,1777271448937,-500.0,0.00019178,2]
[421228657,1777271448948,-505.50892271,0.00019178,2]
[421228658,1777271448959,-500.0,0.00019178,2]
[421228659,1777271448971,-1676.43,0.00019178,2]
[421228660,1777271448982,-500.0,0.00019178,2]
[421228661,1777271448993,-500.0,0.00019178,2]
[421228662,1777271449004,-5631.33,0.00019178,2]
[421228663,1777271449015,-861.28,0.00019178,2]
[421228664,1777271449025,-8768.04,0.00019178,2]
[421228665,1777271449036,-558.53,0.00019178,2]
[421228666,1777271449047,-500.0,0.00019178,2]
[421228667,1777271449059,-5128.82,0.00019178,2]
[421228668,1777271449069,-500.0,0.00019178,2]
[421228669,1777271449080,-500.0,0.00019178,2]
[421228670,1777271449091,-198.46599146,0.00019178,2]
[421228671,1777271449103,-792.97,0.00019178,2]
[421228672,1777271449114,-500.0,0.00019178,2]
[421228673,1777271449126,-727.97,0.00019178,2]
[421228674,1777271449136,-8633.92,0.00019178,2]
[421228675,1777271449147,-540.98,0.00019178,2]
[421228676,1777271449158,-1608.01,0.00019178,2]
[421228677,1777271449169,-500.0,0.00019178,2]
[421228678,1777271449179,-3818.25,0.00019178,2]
[421228679,1777271449191,-659.58,0.00019178,2]
[421228680,1777271449202,-1605.53,0.00019178,2]
[421228681,1777271449214,-5734.85,0.00019178,2]
[421228682,1777271449225,-1304.91,0.00019178,2]
[421228683,1777271449239,-1985.95,0.00019178,2]
[421228684,1777271449250,-1628.05,0.00019178,2]
[421228685,1777271449261,-318.76573666,0.00019178,2]
[421228686,1777271449271,-500.0,0.00019178,2]
[421228687,1777271449282,-2613.09,0.00019178,2]
[421228688,1777271449293,-2928.87,0.00019178,2]
[421228689,1777271449304,-500.0,0.00019178,2]
[421228690,1777271449314,-500.0,0.00019178,2]
[421228691,1777271449325,-500.0,0.00019178,2]
[421228692,1777271449335,-5067.72,0.00019178,2]
[421228693,1777271449346,-500.0,0.00019178,2]
[421228694,1777271449357,-500.0,0.00019178,2]
[421228695,1777271449368,-915.93,0.00019178,2]
[421228696,1777271449380,-500.0,0.00019178,2]
[421228697,1777271449391,-500.0,0.00019178,2]
[421228698,1777271449402,-500.0,0.00019178,2]
[421228699,1777271449414,-500.0,0.00019178,2]
[421228700,1777271449426,-630.84,0.00019178,2]
[421228701,1777271449436,-898.28,0.00019178,2]
[421228702,1777271449447,-563.28,0.00019178,2]
[421228703,1777271449458,-500.0,0.00019178,2]
[421228704,1777271449469,-500.0,0.00019178,2]
[421228705,1777271449479,-573.92,0.00019178,2]
[421228706,1777271449491,-500.0,0.00019178,2]
[421228707,1777271449501,-500.0,0.00019178,2]
[421228708,1777271449512,-500.0,0.00019178,2]
[421228709,1777271449523,-9352.13,0.00019178,2]
[421228710,1777271449535,-500.0,0.00019178,2]
[421228711,1777271449545,-601.81,0.00019178,2]
[421228712,1777271449556,-3013.8458845,0.00019178,2]
[421228713,1777271449579,-1159.1341155,0.00019178,2]
[421228714,1777271449591,-1431.54,0.00019178,2]
[421228715,1777271449603,-4465.74,0.00019178,2]
[421228716,1777271449614,-1189.76937474,0.00019178,2]
[421228717,1777271450628,-500.0,7.746e-05,2]
[421228718,1777271450651,-420.8168224,7.746e-05,2]
[421228719,1777271450673,-79.1831776,7.746e-05,2]
[421228720,1777271450683,-500.0,7.746e-05,2]
[421228721,1777271450692,-500.0,7.746e-05,2]
[421228722,1777271450702,-500.0,7.746e-05,2]
[421228723,1777271450711,-500.0,7.746e-05,2]
[421228724,1777271450721,-500.0,7.746e-05,2]
[421228725,1777271450730,-500.0,7.746e-05,2]
[421228726,1777271450739,-504.99962003,7.746e-05,2]
[421228727,1777271450749,-500.0,7.746e-05,2]
[421228728,1777271450759,-500.0,7.746e-05,2]
[421228729,1777271450768,-152.0,0.00011288,7]
[421228730,1777271450778,-33.87062526,0.00019178,2]
[421228731,1777271450787,-5692.2,0.00019178,2]
[421228732,1777271450796,-1982.37,0.00019178,2]
[421228733,1777271450806,-501.66621885,0.00019178,2]
[421228734,1777271450815,-500.0,0.00019178,2]
[421228735,1777271450825,-500.0,0.00019178,2]
[421228736,1777271450835,-500.0,0.00019178,2]
[421228737,1777271450845,-1353.71035826,0.00019178,2]
[421228738,1777271451060,-152.0,0.00011288,7]
[421228739,1777271451069,-152.0,0.00011299,7]
[421228740,1777271451079,-152.0,0.00011299,7]
[421228741,1777271451089,-4403.20964174,0.00019178,2]
[421228742,1777271451100,-55793.42,0.00019178,2]
[421228743,1777271451109,-500.0,0.00019178,2]
[421228744,1777271451118,-11518.0,0.00019178,2]
[421228745,1777271451130,-2836.14,0.00019178,2]
[421228746,1777271451140,-2354.15,0.00019178,2]
[421228747,1777271451150,-1569.07,0.00019178,2]
[421228748,1777271451159,-500.0,0.00019178,2]
[421228749,1777271451169,-170.95118847,0.00019178,2]
[421228750,1777271451295,-800.43881153,0.00019178,2]
[421228751,1777271451305,-2844.07,0.00019178,2]
[421228752,1777271451314,-13170.02,0.00019178,2]
[421228753,1777271451323,-3397.85,0.00019178,2]
[421228754,1777271451333,-1334.9,0.00019178,2]
[421228755,1777271451342,-6133.8,0.00019178,2]
[421228756,1777271451351,-500.0,0.00019178,2]
[421228757,1777271451360,-500.0,0.00019178,2]
[421228758,1777271451370,-19426.68,0.00019178,2]
[421228759,1777271451379,-2196.32,0.00019178,2]
[421228760,1777271451390,-500.0,0.00019178,2]
[421228761,1777271451400,-500.0,0.00019178,2]
[421228762,1777271451410,-15867.63,0.00019178,2]
[421228763,1777271451420,-849.84,0.00019178,2]
[421228764,1777271451430,-500.0,0.00019178,2]
[421228765,1777271451440,-1867.12,0.00019178,2]
[421228766,1777271451449,-500.0,0.00019178,2]
[421228767,1777271451458,-1930.18,0.00019178,2]
[421228768,1777271451468,-500.0,0.00019178,2]
[421228769,1777271451478,-5074.21,0.00019178,2]
[421228770,1777271451487,-1914.75,0.00019178,2]
[421228771,1777271451496,-500.0,0.00019178,2]
[421228772,1777271451506,-2009.11,0.00019178,2]
[421228773,1777271451515,-14105.49,0.00019178,2]
[421228774,1777271451525,-2094.6,0.00019178,2]
[421228775,1777271451534,-513.23,0.00019178,2]
[421228776,1777271451544,-2031.08,0.00019178,2]
[421228777,1777271451553,-950.35,0.00019178,2]
[421228778,1777271451562,-3054.41,0.00019178,2]
[421228779,1777271451573,-500.0,0.00019178,2]
[421228780,1777271451583,-500.0,0.00019178,2]
[421228781,1777271451592,-500.0,0.00019178,2]
[421228782,1777271451601,-500.0,0.00019178,2]
[421228783,1777271451610,-255.0,0.00019178,2]
[421228784,1777271451619,-200.0,0.00019178,2]
[421228785,1777271451628,-200.0,0.00019178,2]
[421228786,1777271451638,-200.0,0.00019178,2]
[421228787,1777271451647,-237.0,0.00019178,2]
[421228788,1777271451657,-504.08564469,0.00019178,2]
[421228789,1777271451666,-1282.0,0.00019178,2]
[421228790,1777271451676,-1286.2428846,0.00019198,15]
[421228791,1777271451686,-665.0,0.00019208,2]
[421228792,1777271451695,-760.40066801,0.00019209,29]
[421228793,1777271451704,-665.0,0.00019211,2]
[421228794,1777271451715,-2000.0,0.00019215,7]
[421228795,1777271451724,-1529.6,0.00019291,5]
[421228796,1777271451734,-665.0,0.00019301,2]
[421228797,1777271451743,-160.0,0.00019303,5]
[421228798,1777271451752,-665.0,0.00019315,2]
[421228799,1777271451762,-155.0,0.00019349,2]
[421228800,1777271451771,-7953.34697137,0.000194,2]
[421228801,1777271451782,-665.0,0.0001941,2]
[421228802,1777271451791,-2000.0,0.00019411,7]
[421228803,1777271451800,-200.0,0.00019451,2]
[421228804,1777271451809,-189.27430386,0.00019451,2]
[421228805,1777271451819,-641.6589,0.00019452,2]
[421228806,1777271451829,-1071.4421,0.00019452,2]
[421228807,1777271451838,-500.0,0.00019452,2]
[421228808,1777271451847,-1198.2,0.00019452,2]
[421228809,1777271451857,-1163.46,0.00019452,2]
[421228810,1777271451866,-500.0,0.00019452,2]
[421228811,1777271451875,-566.56,0.00019452,2]
[421228812,1777271451884,-500.0,0.00019452,2]
[421228813,1777271451893,-500.0,0.00019452,2]
[421228814,1777271451903,-580.22941226,0.00019452,2]
[421228815,1777271451914,-500.0,0.00019452,2]
[421228816,1777271451923,-1556.53,0.00019452,2]
[421228817,1777271451933,-500.0,0.00019452,2]
[421228818,1777271451942,-500.0,0.00019452,2]
[421228819,1777271451951,-500.0,0.00019452,2]
[421228820,1777271451960,-502.09856508,0.00019452,2]
[421228821,1777271451970,-500.0,0.00019452,2]
[421228822,1777271451979,-500.0,0.00019452,2]
[421228823,1777271451988,-500.0,0.00019452,2]
[421228824,1777271451998,-497.07386294,0.00019452,2]
[421228825,1777271452007,-925.67,0.00019452,2]
[421228826,1777271452017,-504.71,0.00019452,2]
[421228827,1777271452026,-500.0,0.00019452,2]
[421228828,1777271452035,-500.0,0.00019452,2]
[421228829,1777271452045,-500.0,0.00019452,2]
[421228830,1777271452055,-692.8,0.00019452,2]
[421228831,1777271452065,-778.85,0.00019452,2]
[421228832,1777271452075,-522.56,0.00019452,2]
[421228833,1777271452084,-500.0,0.00019452,2]
[421228834,1777271452094,-500.0,0.00019452,2]
[421228835,1777271452104,-317.278952,0.00019452,2]
[421228836,1777271452114,-317.278952,0.00019452,2]
[421228837,1777271452123,-317.278952,0.00019452,2]
[421228838,1777271452133,-317.278952,0.00019452,2]
[421228839,1777271452144,-317.278952,0.00019452,2]
[421228840,1777271452153,-317.278952,0.00019452,2]
[421228841,1777271452163,-317.278952,0.00019452,2]
[421228842,1777271452173,-317.278952,0.00019452,2]
[421228843,1777271452183,-317.278952,0.00019452,2]
[421228844,1777271452194,-317.278952,0.00019452,2]
[421228845,1777271452213,-317.278952,0.00019452,2]
[421228846,1777271452223,-317.278952,0.00019452,2]
[421228847,1777271452232,-317.278952,0.00019452,2]
[421228848,1777271452242,-317.278952,0.00019452,2]
[421228849,1777271452252,-317.278952,0.00019452,2]
[421228850,1777271452263,-317.278952,0.00019452,2]
[421228851,1777271452273,-317.278952,0.00019452,2]
[421228852,1777271452283,-317.278952,0.00019452,2]
[421228853,1777271452293,-317.278952,0.00019452,2]
[421228854,1777271452303,-317.278952,0.00019452,2]
[421228855,1777271452313,-317.278952,0.00019452,2]
[421228856,1777271452322,-317.278952,0.00019452,2]
[421228857,1777271452332,-317.278952,0.00019452,2]
[421228858,1777271452342,-317.278952,0.00019452,2]
[421228859,1777271452353,-317.278952,0.00019452,2]
[421228860,1777271452363,-317.278952,0.00019452,2]
[421228861,1777271452373,-317.278952,0.00019452,2]
[421228862,1777271452384,-317.278952,0.00019452,2]
[421228863,1777271452395,-317.278952,0.00019452,2]
[421228864,1777271452404,-1000.0,0.00019452,2]
[421228865,1777271452414,-317.278952,0.00019452,2]
[421228866,1777271452424,-317.278952,0.00019452,2]
[421228867,1777271452434,-317.278952,0.00019452,2]
[421228868,1777271452444,-317.278952,0.00019452,2]
[421228869,1777271452454,-317.278952,0.00019452,2]
[421228870,1777271452464,-317.278952,0.00019452,2]
[421228871,1777271452474,-500.0,0.00019452,2]
[421228872,1777271452485,-317.278952,0.00019452,2]
[421228873,1777271452494,-317.278952,0.00019452,2]
[421228874,1777271452505,-317.278952,0.00019452,2]
[421228875,1777271452515,-317.278952,0.00019452,2]
[421228876,1777271452524,-317.278952,0.00019452,2]
[421228877,1777271452534,-317.278952,0.00019452,2]
[421228878,1777271452544,-317.278952,0.00019452,2]
[421228879,1777271452554,-317.278952,0.00019452,2]
[421228880,1777271452563,-317.278952,0.00019452,2]
[421228881,1777271452573,-317.278952,0.00019452,2]
[421228882,1777271452583,-317.278952,0.00019452,2]
[421228883,1777271452593,-317.278952,0.00019452,2]
[421228884,1777271452603,-317.278952,0.00019452,2]
[421228885,1777271452613,-317.278952,0.00019452,2]
[421228886,1777271452623,-317.278952,0.00019452,2]
[421228887,1777271452632,-317.278952,0.00019452,2]
[421228888,1777271452642,-317.278952,0.00019452,2]
[421228889,1777271452651,-317.278952,0.00019452,2]
[421228890,1777271452661,-317.278952,0.00019452,2]
[421228891,1777271452671,-317.278952,0.00019452,2]
[421228892,1777271452680,-317.278952,0.00019452,2]
[421228893,1777271452691,-317.278952,0.00019452,2]
[421228894,1777271452701,-317.278952,0.00019452,2]
[421228895,1777271452711,-317.278952,0.00019452,2]
[421228896,1777271452721,-317.278952,0.00019452,2]
[421228897,1777271452731,-317.278952,0.00019452,2]
[421228898,1777271452741,-317.278952,0.00019452,2]
[421228899,1777271452751,-317.278952,0.00019452,2]
[421228900,1777271452764,-317.278952,0.00019452,2]
[421228901,1777271452774,-317.278952,0.00019452,2]
[421228902,1777271452785,-317.278952,0.00019452,2]
[421228903,1777271452795,-317.278952,0.00019452,2]
[421228904,1777271452806,-317.278952,0.00019452,2]
[421228905,1777271452815,-317.278952,0.00019452,2]
[421228906,1777271452825,-317.278952,0.00019452,2]
[421228907,1777271452835,-317.278952,0.00019452,2]
[421228908,1777271452845,-317.278952,0.00019452,2]
[421228909,1777271452856,-317.278952,0.00019452,2]
[421228910,1777271452866,-690.06,0.00019452,2]
[421228911,1777271452877,-317.278952,0.00019452,2]
[421228912,1777271452887,-317.278952,0.00019452,2]
[421228913,1777271452898,-317.278952,0.00019452,2]
[421228914,1777271452908,-317.278952,0.00019452,2]
[421228915,1777271452918,-317.278952,0.00019452,2]
[421228916,1777271452928,-317.278952,0.00019452,2]
[421228917,1777271452937,-317.278952,0.00019452,2]
[421228918,1777271452947,-317.278952,0.00019452,2]
[421228919,1777271452956,-317.278952,0.00019452,2]
[421228920,1777271452966,-317.278952,0.00019452,2]
[421228921,1777271452976,-317.278952,0.00019452,2]
[421228922,1777271452986,-317.278952,0.00019452,2]
[421228923,1777271452997,-317.278952,0.00019452,2]
[421228924,1777271453007,-317.278952,0.00019452,2]
[421228925,1777271453017,-317.278952,0.00019452,2]
[421228926,1777271453027,-317.278952,0.00019452,2]
[421228927,1777271453038,-317.278952,0.00019452,2]
[421228928,1777271453048,-317.278952,0.00019452,2]
[421228929,1777271453058,-317.278952,0.00019452,2]
[421228930,1777271453068,-317.278952,0.00019452,2]
[421228931,1777271453078,-317.278952,0.00019452,2]
[421228932,1777271453087,-317.278952,0.00019452,2]
[421228933,1777271453097,-317.278952,0.00019452,2]
[421228934,1777271453108,-317.278952,0.00019452,2]
[421228935,1777271453117,-317.278952,0.00019452,2]
[421228936,1777271453127,-317.278952,0.00019452,2]
[421228937,1777271453137,-317.278952,0.00019452,2]
[421228938,1777271453147,-500.0,0.00019452,2]
[421228939,1777271453157,-500.0,0.00019452,2]
[421228940,1777271453168,-500.0,0.00019452,2]
[421228941,1777271453178,-500.0,0.00019452,2]
[421228942,1777271453187,-500.0,0.00019452,2]
[421228943,1777271453197,-500.0,0.00019452,2]
[421228944,1777271453206,-500.0,0.00019452,2]
[421228945,1777271453217,-500.0,0.00019452,2]
[421228946,1777271453227,-614.78,0.00019452,2]
[421228947,1777271453237,-500.0,0.00019452,2]
[421228948,1777271453247,-500.0,0.00019452,2]
[421228949,1777271453256,-636.75,0.00019452,2]
[421228950,1777271453266,-828.73,0.00019452,2]
[421228951,1777271453276,-500.0,0.00019452,2]
[421228952,1777271453286,-500.0,0.00019452,2]
[421228953,1777271453296,-1233.03,0.00019452,2]
[421228954,1777271453305,-500.0,0.00019452,2]
[421228955,1777271453315,-984.53,0.00019452,2]
[421228956,1777271453324,-667.1,0.00019452,2]
[421228957,1777271453334,-500.0,0.00019452,2]
[421228958,1777271453503,-500.0,0.00019452,2]
[421228959,1777271453513,-500.0,0.00019452,2]
[421228960,1777271453523,-500.0,0.00019452,2]
[421228961,1777271453532,-500.0,0.00019452,2]
[421228962,1777271453542,-500.0,0.00019452,2]
[421228963,1777271453551,-1000.0,0.00019452,2]
[421228964,1777271453560,-500.0,0.00019452,2]
[421228965,1777271453570,-609.16,0.00019452,2]
[421228966,1777271453579,-500.0,0.00019452,2]
[421228967,1777271453588,-500.0,0.00019452,2]
[421228968,1777271453598,-4525.54,0.00019452,2]
[421228969,1777271453608,-1941.75,0.00019452,2]
[421228970,1777271453618,-1719.05,0.00019452,2]
[421228971,1777271453627,-782.85,0.00019452,2]
[421228972,1777271453637,-500.0,0.00019452,2]
[421228973,1777271453647,-524.02,0.00019452,2]
[421228974,1777271453656,-500.0,0.00019452,2]
[421228975,1777271453665,-500.0,0.00019452,2]
[421228976,1777271453675,-500.0,0.00019452,2]
[421228977,1777271453685,-500.0,0.00019452,2]
[421228978,1777271453695,-713.57,0.00019452,2]
[421228979,1777271453705,-701.51,0.00019452,2]
[421228980,1777271453714,-500.0,0.00019452,2]
[421228981,1777271453724,-500.0,0.00019452,2]
[421228982,1777271453733,-838.23,0.00019452,2]
[421228983,1777271453743,-500.0,0.00019452,2]
[421228984,1777271453752,-582.24,0.00019452,2]
[421228985,1777271453761,-500.0,0.00019452,2]
[421228986,1777271453771,-1039.27,0.00019452,2]
[421228987,1777271453782,-500.0,0.00019452,2]
[421228988,1777271453791,-500.0,0.00019452,2]
[421228989,1777271453801,-500.0,0.00019452,2]
[421228990,1777271453810,-1596.24,0.00019452,2]
[421228991,1777271453820,-322.67521164,0.00019452,2]
[421228992,1777271453829,-500.0,0.00019452,2]
[421228993,1777271453839,-1518.77,0.00019452,2]
[421228994,1777271453848,-723.67,0.00019452,2]
[421228995,1777271453858,-5619.89,0.00019452,2]
[421228996,1777271453868,-500.0,0.00019452,2]
[421228997,1777271453877,-500.0,0.00019452,2]
[421228998,1777271453887,-500.0,0.00019452,2]
[421228999,1777271453896,-806.62,0.00019452,2]
[421229000,1777271453906,-500.0,0.00019452,2]
[421229001,1777271453915,-950.1,0.00019452,2]
[421229002,1777271453925,-2951.96,0.00019452,2]
[421229003,1777271453934,-500.0,0.00019452,2]
[421229004,1777271453944,-2470.89,0.00019452,2]
[421229005,1777271453954,-1084.27,0.00019452,2]
[421229006,1777271453963,-951.38,0.00019452,2]
[421229007,1777271453972,-500.0,0.00019452,2]
[421229008,1777271453982,-1410.56,0.00019452,2]
[421229009,1777271453991,-1247.62,0.00019452,2]
[421229010,1777271454002,-2811.67,0.00019452,2]
[421229011,1777271454011,-500.0,0.00019452,2]
[421229012,1777271454020,-500.0,0.00019452,2]
[421229013,1777271454030,-500.0,0.00019452,2]
[421229014,1777271454039,-881.85,0.00019452,2]
[421229015,1777271454049,-3296.01,0.00019452,2]
[421229016,1777271454059,-2027.37,0.00019452,2]
[421229017,1777271454069,-234.21274795,0.00019452,2]
[421229018,1777271454078,-533.79,0.00019452,2]
[421229019,1777271454088,-500.0,0.00019452,2]
[421229020,1777271454097,-764.13,0.00019452,2]
[421229021,1777271454108,-552.77058532,0.00019452,2]
[421229022,1777271454117,-500.0,0.00019452,2]
[421229023,1777271454126,-1212.35,0.00019452,2]
[421229024,1777271454136,-1222.06,0.00019452,2]
[421229025,1777271454145,-500.0,0.00019452,2]
[421229026,1777271454155,-500.0,0.00019452,2]
[421229027,1777271454164,-500.0,0.00019452,2]
[421229028,1777271454174,-1999.35,0.00019452,2]
[421229029,1777271454183,-1396.76,0.00019452,2]
[421229030,1777271454193,-6762.16,0.00019452,2]
[421229031,1777271454203,-500.0,0.00019452,2]
[421229032,1777271454212,-500.0,0.00019452,2]
[421229033,1777271454222,-500.0,0.00019452,2]
[421229034,1777271454231,-500.0,0.00019452,2]
[421229035,1777271454240,-3455.35,0.00019452,2]
[421229036,1777271454250,-500.0,0.00019452,2]
[421229037,1777271454260,-529.42350554,0.00019452,2]
[421229038,1777271454269,-1158.52,0.00019452,2]
[421229039,1777271454279,-2745.09,0.00019452,2]
[421229040,1777271454288,-500.0,0.00019452,2]
[421229041,1777271454297,-500.0,0.00019452,2]
[421229042,1777271454307,-500.0,0.00019452,2]
[421229043,1777271454316,-500.0,0.00019452,2]
[421229044,1777271454326,-500.0,0.00019452,2]
[421229045,1777271454335,-3239.56,0.00019452,2]
[421229046,1777271454345,-1227.02,0.00019452,2]
[421229047,1777271454355,-500.0,0.00019452,2]
[421229048,1777271454364,-500.0,0.00019452,2]
[421229049,1777271454374,-500.0,0.00019452,2]
[421229050,1777271454383,-1676.43,0.00019452,2]
[421229051,1777271454394,-500.0,0.00019452,2]
[421229052,1777271454404,-500.0,0.00019452,2]
[421229053,1777271454414,-5631.33,0.00019452,2]
[421229054,1777271454423,-861.28,0.00019452,2]
[421229055,1777271454432,-8768.04,0.00019452,2]
[421229056,1777271454442,-558.53,0.00019452,2]
[421229057,1777271454452,-500.0,0.00019452,2]
[421229058,1777271454462,-5128.82,0.00019452,2]
[421229059,1777271454472,-500.0,0.00019452,2]
[421229060,1777271454482,-215.28333419,0.00019452,2]